fUST/lending_fUST_20240608
["ID","MTS","AMOUNT","RATE_DAILY","PERIOD"]
[328813172,1717824637587,-509.55,0.00016438,2]
[328813173,1717824637598,-500.0,0.00016438,2]
[328813174,1717824637609,-1456.45,0.00016438,2]
[328813175,1717824637622,-167.19217958,0.00016438,2]
[328813176,1717824637633,-394.12766734,0.00016438,2]
[328813177,1717824637645,-500.0,0.00016438,2]
[328813178,1717824637655,-500.0,0.00016438,2]
[328813179,1717824637666,-504.4876217,0.00016438,2]
[328813180,1717824637676,-508.04103175,0.00016438,2]
[328813181,1717824637687,-500.0,0.00016438,2]
[328813182,1717824637697,-502.67986867,0.00016438,2]
[328813183,1717824637707,-531.48703261,0.00016438,2]
[328813184,1717824637718,-500.0,0.00016438,2]
[328813185,1717824637728,-504.45134505,0.00016438,2]
[328813186,1717824637738,-502.53730715,0.00016438,2]
[328813187,1717824637749,-500.0,0.00016438,2]
[328813188,1717824637759,-500.0,0.00016438,2]
[328813189,1717824637769,-519.47131481,0.00016438,2]
[328813190,1717824637781,-501.71235181,0.00016438,2]
[328813191,1717824637791,-500.0,0.00016438,2]
[328813192,1717824637803,-225.6985044,0.00016438,2]
[328813193,1717824637813,-500.0,0.00016438,2]
[328813194,1717824637824,-503.65392014,0.00016438,2]
[328813195,1717824637834,-619.77871927,0.00016438,2]
[328813196,1717824637845,-500.0,0.00016438,2]
[328813197,1717824637855,-609.09688255,0.00016438,2]
[328813198,1717824637866,-500.0,0.00016438,2]
[328813199,1717824637877,-500.0,0.00016438,2]
[328813200,1717824637887,-505.38145834,0.00016438,2]
[328813201,1717824637898,-534.64342426,0.00016438,2]
[328813202,1717824637908,-504.85254029,0.00016438,2]
[328813203,1717824637918,-502.45771136,0.00016438,2]
[328813204,1717824637930,-500.0,0.00016438,2]
[328813205,1717824637940,-915.1,0.00016438,2]
[328813206,1717824637950,-505.83195416,0.00016438,2]
[328813207,1717824637962,-511.94172426,0.00016438,2]
[328813208,1717824637972,-1094.91,0.00016438,2]
[328813209,1717824637983,-500.0,0.00016438,2]
[328813210,1717824637994,-2905.83,0.00016438,2]
[328813211,1717824638006,-500.0,0.00016438,2]
[328813212,1717824638016,-500.0,0.00016438,2]
[328813213,1717824638027,-500.0,0.00016438,2]
[328813214,1717824638038,-500.0,0.00016438,2]
[328813215,1717824638052,-319.99625319,0.00016438,2]
[328813216,1717824638063,-696.99,0.00016438,2]
[328813217,1717824638073,-500.0,0.00016438,2]
[328813218,1717824638085,-500.0,0.00016438,2]
[328813221,1717824638095,-500.0,0.00016438,2]
[328813222,1717824638106,-500.0,0.00016438,2]
[328813224,1717824638116,-500.0,0.00016438,2]
[328813226,1717824638126,-504.24104033,0.00016438,2]
[328813228,1717824638137,-587.21987954,0.00016438,2]
[328813230,1717824638148,-500.0,0.00016438,2]
[328813232,1717824638159,-515.51334756,0.00016438,2]
[328813234,1717824638170,-500.0,0.00016438,2]
[328813236,1717824638180,-505.36970192,0.00016438,2]
[328813238,1717824638190,-500.0,0.00016438,2]
[328813240,1717824638201,-500.0,0.00016438,2]
[328813242,1717824638211,-500.0,0.00016438,2]
[328813244,1717824638221,-500.0,0.00016438,2]
[328813246,1717824638231,-510.44962907,0.00016438,2]
[328813247,1717824638242,-1375.31,0.00016438,2]
[328813249,1717824638252,-1245.42,0.00016438,2]
[328813251,1717824638262,-533.29910398,0.00016438,2]
[328813253,1717824638272,-500.0,0.00016438,2]
[328813254,1717824638282,-296.32769082,0.00016438,2]
[328813255,1717824638292,-535.56340535,0.00016438,2]
[328813256,1717824638302,-2340.38,0.00016438,2]
[328813257,1717824638312,-501.39471564,0.00016438,2]
[328813258,1717824638321,-1126.55,0.00016438,2]
[328813259,1717824638331,-500.0,0.00016438,2]
[328813260,1717824638340,-512.79983228,0.00016438,2]
[328813262,1717824638352,-505.06893032,0.00016438,2]
[328813263,1717824638363,-1003.09960212,0.00016438,2]
[328813265,1717824638373,-533.10958544,0.00016438,2]
[328813266,1717824638383,-500.0,0.00016438,2]
[328813267,1717824638392,-500.0,0.00016438,2]
[328813268,1717824638403,-494.1991931,0.00016438,2]
[328813269,1717824638412,-500.0,0.00016438,2]
[328813270,1717824638423,-178.9372028,0.00016438,2]
[328813271,1717824638432,-502.60476065,0.00016438,2]
[328813272,1717824638442,-1988.71,0.00016438,2]
[328813274,1717824638452,-503.97204798,0.00016438,2]
[328813276,1717824638462,-500.0,0.00016438,2]
[328813277,1717824638472,-448.24377813,0.00016438,2]
[328813278,1717824638482,-500.0,0.00016438,2]
[328813279,1717824638492,-502.98999251,0.00016438,2]
[328813280,1717824638502,-502.1183797,0.00016438,2]
[328813281,1717824638512,-500.0,0.00016438,2]
[328813282,1717824638523,-500.0,0.00016438,2]
[328813283,1717824638533,-502.72665624,0.00016438,2]
[328813285,1717824638544,-500.0,0.00016438,2]
[328813287,1717824638555,-670.55,0.00016438,2]
[328813289,1717824638566,-500.0,0.00016438,2]
[328813290,1717824638582,-500.0,0.00016438,2]
[328813291,1717824638593,-548.94,0.00016438,2]
[328813292,1717824638603,-457.75628833,0.00016438,2]
[328813293,1717824638613,-416.61368698,0.00016438,2]
[328813294,1717824638624,-500.0,0.00016438,2]
[328813295,1717824638634,-506.24515835,0.00016438,2]
[328813296,1717824638644,-500.0,0.00016438,2]
[328813297,1717824638658,-500.0,0.00016438,2]
[328813298,1717824638669,-500.0,0.00016438,2]
[328813299,1717824638680,-784.98,0.00016438,2]
[328813300,1717824638690,-500.79179227,0.00016438,2]
[328813301,1717824638701,-500.0,0.00016438,2]
[328813302,1717824638711,-500.0,0.00016438,2]
[328813303,1717824638722,-500.0,0.00016438,2]
[328813304,1717824638732,-807.32,0.00016438,2]
[328813305,1717824638743,-1002.01,0.00016438,2]
[328813306,1717824638753,-536.15,0.00016438,2]
[328813307,1717824638764,-503.06291259,0.00016438,2]
[328813308,1717824638774,-503.77947049,0.00016438,2]
[328813309,1717824638784,-504.5154809,0.00016438,2]
[328813310,1717824638794,-512.42009472,0.00016438,2]
[328813312,1717824638806,-503.16035701,0.00016438,2]
[328813314,1717824638817,-500.0,0.00016438,2]
[328813315,1717824638827,-500.0,0.00016438,2]
[328813316,1717824638837,-3234.46,0.00016438,2]
[328813317,1717824638848,-166.41300834,0.00016438,2]
[328813318,1717824638858,-1787.65,0.00016438,4]
[328813319,1717824638868,-493.66779755,0.00016438,2]
[328813320,1717824638880,-500.0,0.00016438,2]
[328813321,1717824638891,-500.0,0.00016438,2]
[328813322,1717824638902,-439.67590057,0.00016438,2]
[328813323,1717824638912,-1398.45,0.00016438,2]
[328813324,1717824638923,-508.88,0.00016438,2]
[328813326,1717824638934,-500.0,0.00016438,2]
[328813328,1717824638944,-818.54,0.00016438,2]
[328813330,1717824638955,-500.0,0.00016438,2]
[328813331,1717824638965,-604.46,0.00016438,2]
[328813332,1717824638976,-4251.98,0.00016438,2]
[328813333,1717824638986,-511.37012161,0.00016438,2]
[328813334,1717824638996,-1727.96,0.00016438,2]
[328813335,1717824639006,-500.0,0.00016438,2]
[328813336,1717824639016,-993.39,0.00016438,2]
[328813337,1717824639026,-503.34885869,0.00016438,2]
[328813338,1717824639036,-1394.91,0.00016438,2]
[328813339,1717824639047,-500.0,0.00016438,2]
[328813340,1717824639058,-500.0,0.00016438,2]
[328813341,1717824639069,-500.0,0.00016438,2]
[328813342,1717824639080,-500.0,0.00016438,2]
[328813343,1717824639090,-500.0,0.00016438,2]
[328813344,1717824639100,-519.7419243,0.00016438,2]
[328813345,1717824639110,-500.0,0.00016438,2]
[328813346,1717824639121,-621.7544673,0.00016438,2]
[328813347,1717824639131,-502.66354023,0.00016438,2]
[328813348,1717824639141,-288.71721358,0.00016438,2]
[328813349,1717824639271,-500.0,0.00016438,2]
[328813350,1717824639283,-504.36572278,0.00016438,2]
[328813351,1717824639294,-1240.86,0.00016438,2]
[328813352,1717824639305,-500.0,0.00016438,2]
[328813353,1717824639316,-700.98,0.00016438,2]
[328813354,1717824639326,-501.55032222,0.00016438,2]
[328813355,1717824639337,-500.0,0.00016438,2]
[328813356,1717824639348,-502.90503788,0.00016438,2]
[328813357,1717824639359,-500.0,0.00016438,2]
[328813358,1717824639370,-500.0,0.00016438,2]
[328813359,1717824639381,-2569.94,0.00016438,2]
[328813360,1717824639391,-500.0,0.00016438,2]
[328813361,1717824639402,-3484.72,0.00016438,2]
[328813362,1717824639413,-11106.19,0.00016438,2]
[328813363,1717824639423,-602.77,0.00016438,2]
[328813364,1717824639433,-500.0,0.00016438,2]
[328813365,1717824639443,-500.0,0.00016438,2]
[328813366,1717824639454,-500.0,0.00016438,2]
[328813367,1717824639465,-500.0,0.00016438,2]
[328813368,1717824639475,-500.0,0.00016438,2]
[328813369,1717824639485,-500.0,0.00016438,2]
[328813370,1717824639495,-500.0,0.00016438,2]
[328813371,1717824639505,-500.0,0.00016438,2]
[328813372,1717824639516,-500.0,0.00016438,2]
[328813373,1717824639526,-9952.99,0.00016438,2]
[328813374,1717824639536,-283.76544559,0.00016438,2]
[328813375,1717824639546,-500.0,0.00016438,2]
[328813376,1717824639557,-826.47,0.00016438,2]
[328813377,1717824639568,-500.0,0.00016438,2]
[328813378,1717824639582,-155.06187542,0.00016438,2]
[328813379,1717824639592,-508.18618309,0.00016438,2]
[328813380,1717824639602,-762.71,0.00016438,2]
[328813381,1717824639612,-500.0,0.00016438,2]
[328813382,1717824639623,-500.0,0.00016438,2]
[328813383,1717824639634,-500.0,0.00016438,2]
[328813384,1717824639645,-500.0,0.00016438,2]
[328813385,1717824639656,-503.41680615,0.00016438,2]
[328813386,1717824639667,-500.0,0.00016438,2]
[328813387,1717824639676,-5547.74,0.00016438,2]
[328813388,1717824639687,-500.0,0.00016438,2]
[328813389,1717824639697,-500.0,0.00016438,2]
[328813390,1717824639708,-1039.64000203,0.00016438,2]
[328813391,1717824639719,-500.0,0.00016438,2]
[328813392,1717824639729,-501.14978829,0.00016438,2]
[328813393,1717824639740,-500.0,0.00016438,2]
[328813394,1717824639750,-3528.81,0.00016438,2]
[328813395,1717824639761,-617.64,0.00016438,2]
[328813396,1717824639772,-1112.3,0.00016438,2]
[328813397,1717824639783,-501.49550077,0.00016438,2]
[328813398,1717824639793,-502.26029972,0.00016438,2]
[328813399,1717824639805,-500.0,0.00016438,2]
[328813400,1717824639818,-5957.18,0.00016438,2]
[328813401,1717824639831,-500.0,0.00016438,2]
[328813402,1717824639842,-500.0,0.00016438,2]
[328813403,1717824639853,-1328.22,0.00016438,2]
[328813404,1717824639863,-546.42,0.00016438,2]
[328813405,1717824639874,-500.0,0.00016438,2]
[328813406,1717824639885,-1655.91,0.00016438,2]
[328813407,1717824639896,-500.0,0.00016438,2]
[328813408,1717824639907,-24592.45,0.00016438,2]
[328813409,1717824639917,-504.2995191,0.00016438,2]
[328813410,1717824639927,-502.99970365,0.00016438,2]
[328813411,1717824639938,-2544.94,0.00016438,2]
[328813412,1717824639949,-811.28,0.00016438,2]
[328813413,1717824639959,-500.0,0.00016438,2]
[328813414,1717824639970,-281.65861863,0.00016438,2]
[328813415,1717824639980,-502.45248333,0.00016438,2]
[328813416,1717824639991,-271.65368726,0.00016438,2]
[328813417,1717824640002,-516.6,0.00016438,2]
[328813418,1717824640013,-642.92,0.00016438,2]
[328813420,1717824640024,-500.0,0.00016438,2]
[328813421,1717824640035,-500.0,0.00016438,2]
[328813422,1717824640046,-500.0,0.00016438,2]
[328813423,1717824640057,-556.58752075,0.00016438,2]
[328813424,1717824640066,-500.0,0.00016438,2]
[328813425,1717824640076,-500.0,0.00016438,2]
[328813426,1717824640087,-500.0,0.00016438,2]
[328813427,1717824640096,-11347.06,0.00016438,2]
[328813428,1717824640106,-500.0,0.00016438,2]
[328813429,1717824640116,-519.27,0.00016438,2]
[328813430,1717824640126,-907.4,0.00016438,2]
[328813431,1717824640137,-500.94418421,0.00016438,2]
[328813432,1717824640147,-500.0,0.00016438,2]
[328813433,1717824640157,-501.87796799,0.00016438,2]
[328813434,1717824640167,-500.0,0.00016438,2]
[328813435,1717824640178,-521.61379551,0.00016438,2]
[328813436,1717824640188,-2173.35,0.00016438,2]
[328813437,1717824640197,-627.71,0.00016438,2]
[328813438,1717824640207,-931.29,0.00016438,2]
[328813439,1717824640217,-2271.73,0.00016438,2]
[328813440,1717824640227,-500.0,0.00016438,2]
[328813441,1717824640239,-520.64714685,0.00016438,2]
[328813442,1717824640248,-436.24790868,0.00016438,2]
[328813443,1717824640258,-501.55782047,0.00016438,2]
[328813444,1717824640268,-500.0,0.00016438,2]
[328813445,1717824640277,-500.0,0.00016438,2]
[328813446,1717824640288,-500.0,0.00016438,2]
[328813447,1717824640297,-2457.46,0.00016438,2]
[328813448,1717824640308,-500.0,0.00016438,2]
[328813449,1717824640318,-501.07045941,0.00016438,2]
[328813450,1717824640328,-508.19876595,0.00016438,2]
[328813451,1717824640338,-1879.99,0.00016438,2]
[328813452,1717824640348,-500.0,0.00016438,2]
[328813453,1717824640359,-500.0,0.00016438,2]
[328813454,1717824640369,-500.0,0.00016438,2]
[328813455,1717824640379,-500.0,0.00016438,2]
[328813456,1717824640389,-500.0,0.00016438,2]
[328813457,1717824640399,-500.0,0.00016438,2]
[328813458,1717824640410,-630.64,0.00016438,2]
[328813459,1717824640420,-1048.2,0.00016438,2]
[328813460,1717824640430,-500.0,0.00016438,2]
[328813461,1717824640441,-500.0,0.00016438,2]
[328813462,1717824640451,-1929.77,0.00016438,2]
[328813463,1717824640461,-5041.12,0.00016438,2]
[328813464,1717824640471,-222.39349873,0.00016438,2]
[328813465,1717824640481,-500.0,0.00016438,2]
[328813466,1717824640490,-584.08,0.00016438,2]
[328813467,1717824640500,-584.08,0.00016438,2]
[328813468,1717824640510,-584.08,0.00016438,2]
[328813469,1717824640521,-584.08,0.00016438,2]
[328813470,1717824640531,-584.08,0.00016438,2]
[328813471,1717824640541,-584.08,0.00016438,2]
[328813472,1717824640552,-584.08,0.00016438,2]
[328813473,1717824640563,-584.08,0.00016438,2]
[328813474,1717824640577,-584.08,0.00016438,2]
[328813475,1717824640588,-584.08,0.00016438,2]
[328813476,1717824640597,-584.08,0.00016438,2]
[328813477,1717824640608,-584.08,0.00016438,2]
[328813478,1717824640618,-584.08,0.00016438,2]
[328813479,1717824640628,-584.08,0.00016438,2]
[328813480,1717824640638,-584.08,0.00016438,2]
[328813481,1717824640648,-500.0,0.00016438,2]
[328813482,1717824640661,-584.08,0.00016438,2]
[328813483,1717824640672,-584.08,0.00016438,2]
[328813484,1717824640682,-584.08,0.00016438,2]
[328813485,1717824640692,-584.08,0.00016438,2]
[328813486,1717824640702,-584.08,0.00016438,2]
[328813487,1717824640712,-584.08,0.00016438,2]
[328813488,1717824640723,-584.08,0.00016438,2]
[328813489,1717824640733,-584.08,0.00016438,2]
[328813490,1717824640744,-584.28692358,0.00016438,2]
[328813491,1717824640755,-509.1385981,0.00016438,2]
[328813492,1717824640765,-500.0,0.00016438,2]
[328813493,1717824640776,-500.0,0.00016438,2]
[328813494,1717824640786,-5070.68,0.00016438,2]
[328813495,1717824640797,-987.1,0.00016438,2]
[328813496,1717824640808,-791.09,0.00016438,2]
[328813497,1717824640818,-528.74582905,0.00016438,2]
[328813498,1717824640828,-525.38434699,0.00016438,2]
[328813499,1717824640839,-3549.32,0.00016438,2]
[328813500,1717824640849,-502.78166473,0.00016438,2]
[328813501,1717824640859,-176.43641789,0.00016438,2]
[328813502,1717824640870,-694.12,0.00016438,2]
[328813503,1717824640880,-2254.34,0.00016438,2]
[328813504,1717824640890,-152.05250174,0.00016438,2]
[328813505,1717824640900,-262.761598,0.00016438,2]
[328813506,1717824640911,-262.761598,0.00016438,2]
[328813507,1717824640922,-262.761598,0.00016438,2]
[328813508,1717824640932,-262.761598,0.00016438,2]
[328813509,1717824640942,-262.761598,0.00016438,2]
[328813510,1717824640953,-262.761598,0.00016438,2]
[328813511,1717824640963,-262.761598,0.00016438,2]
[328813512,1717824640973,-262.761598,0.00016438,2]
[328813513,1717824640983,-262.761598,0.00016438,2]
[328813514,1717824640994,-262.761598,0.00016438,2]
[328813515,1717824641005,-262.761598,0.00016438,2]
[328813516,1717824641015,-262.761598,0.00016438,2]
[328813517,1717824641026,-262.761598,0.00016438,2]
[328813518,1717824641036,-262.761598,0.00016438,2]
[328813519,1717824641046,-262.761598,0.00016438,2]
[328813520,1717824641056,-262.761598,0.00016438,2]
[328813521,1717824641067,-262.761598,0.00016438,2]
[328813522,1717824641077,-262.761598,0.00016438,2]
[328813523,1717824641087,-262.761598,0.00016438,2]
[328813524,1717824641097,-262.761599,0.00016438,2]
[328813525,1717824641106,-247.6123857,0.00016456,2]
[328813526,1717824641116,-275.55259809,0.000165,2]
[328813527,1717824641126,-154.95351395,0.000165,2]
[328813528,1717824641136,-189.29606742,0.00016621,2]
[328813529,1717824641146,-155.20910956,0.00016621,2]
[328813530,1717824641156,-153.0,0.00016639,2]
[328813536,1717824641166,-153.0,0.00016639,2]
[328813540,1717824641176,-153.0,0.00016639,2]
[328813543,1717824641186,-153.0,0.00016639,2]
[328813545,1717824641197,-153.0,0.00016639,2]
[328813547,1717824641207,-153.0,0.00016639,2]
[328813549,1717824641217,-153.0,0.00016639,2]
[328813550,1717824641227,-153.0,0.00016639,2]
[328813551,1717824641236,-153.0,0.00016641,2]
[328813552,1717824641246,-836.26,0.00016712,2]
[328813560,1717824641348,-520.56642469,0.00016712,2]
[328813564,1717824641366,-500.0,0.00016712,2]
[328813566,1717824641377,-500.0,0.00016712,2]
[328813568,1717824641387,-500.0,0.00016712,2]
[328813570,1717824641397,-1498.05,0.00016712,2]
[328813572,1717824641408,-500.0,0.00016712,2]
[328813575,1717824641418,-767.12,0.00016712,2]
[328813577,1717824641428,-500.0,0.00016712,2]
[328813580,1717824641438,-500.0,0.00016712,2]
[328813582,1717824641448,-1017.5,0.00016712,2]
[328813583,1717824641458,-500.0,0.00016712,2]
[328813584,1717824641467,-639.38885479,0.00016712,2]
[328813585,1717824641478,-500.0,0.00016712,2]
[328813586,1717824641488,-510.24,0.00016712,2]
[328813587,1717824641498,-588.63,0.00016712,2]
[328813588,1717824641508,-500.0,0.00016712,2]
[328813589,1717824641519,-500.0,0.00016712,2]
[328813590,1717824641529,-669.47,0.00016712,2]
[328813591,1717824641540,-573.2,0.00016712,2]
[328813592,1717824641550,-729.51,0.00016712,2]
[328813593,1717824641560,-506.56479819,0.00016712,2]
[328813594,1717824641572,-500.0,0.00016712,2]
[328813595,1717824641585,-503.63369735,0.00016712,2]
[328813596,1717824641595,-500.0,0.00016712,2]
[328813597,1717824641605,-1022.17,0.00016712,2]
[328813598,1717824641617,-500.0,0.00016712,2]
[328813599,1717824641628,-507.7540593,0.00016712,2]
[328813600,1717824641638,-508.36909936,0.00016712,2]
[328813601,1717824641649,-501.65984338,0.00016712,2]
[328813602,1717824641661,-2229.61,0.00016712,2]
[328813603,1717824641672,-504.66903752,0.00016712,2]
[328813604,1717824641682,-500.0,0.00016712,2]
[328813605,1717824641694,-685.48,0.00016712,2]
[328813606,1717824641704,-500.0,0.00016712,2]
[328813607,1717824641716,-502.51634545,0.00016712,2]
[328813608,1717824641726,-500.0,0.00016712,2]
[328813609,1717824641736,-500.0,0.00016712,2]
[328813610,1717824641747,-988.38,0.00016712,2]
[328813611,1717824641757,-502.01036217,0.00016712,2]
[328813612,1717824641767,-500.0,0.00016712,2]
[328813613,1717824641777,-525.76,0.00016712,2]
[328813614,1717824641787,-500.0,0.00016712,2]
[328813615,1717824641797,-500.0,0.00016712,2]
[328813616,1717824641808,-500.0,0.00016712,2]
[328813617,1717824641818,-502.6638359,0.00016712,2]
[328813618,1717824641828,-500.0,0.00016712,2]
[328813619,1717824641838,-500.0,0.00016712,2]
[328813620,1717824641848,-500.0,0.00016712,2]
[328813621,1717824641858,-500.0,0.00016712,2]
[328813622,1717824641868,-510.12707545,0.00016712,2]
[328813623,1717824641878,-2442.07,0.00016712,2]
[328813624,1717824641888,-500.0,0.00016712,2]
[328813625,1717824641898,-1577.8,0.00016712,2]
[328813626,1717824641908,-500.0,0.00016712,2]
[328813627,1717824641918,-546.78802981,0.00016712,2]
[328813628,1717824641927,-500.0,0.00016712,2]
[328813629,1717824641937,-502.68631894,0.00016712,2]
[328813630,1717824641947,-502.37780944,0.00016712,2]
[328813631,1717824641957,-1053.49,0.00016712,2]
[328813632,1717824641968,-508.98135486,0.00016712,2]
[328813633,1717824641977,-430.54179943,0.00016712,2]
[328813634,1717824641988,-500.0,0.00016712,2]
[328813635,1717824641998,-500.0,0.00016712,2]
[328813636,1717824642008,-500.0,0.00016712,2]
[328813637,1717824642018,-502.30387046,0.00016712,2]
[328813638,1717824642028,-500.0,0.00016712,2]
[328813639,1717824642039,-528.28015619,0.00016712,2]
[328813640,1717824642049,-500.0,0.00016712,2]
[328813641,1717824642059,-500.0,0.00016712,2]
[328813642,1717824642069,-500.0,0.00016712,2]
[328813643,1717824642079,-804.24,0.00016712,2]
[328813644,1717824642088,-500.0,0.00016712,2]
[328813645,1717824642098,-500.0,0.00016712,2]
[328813646,1717824642108,-500.0,0.00016712,2]
[328813647,1717824642118,-500.0,0.00016712,2]
[328813648,1717824642128,-502.03194353,0.00016712,2]
[328813649,1717824642138,-500.0,0.00016712,2]
[328813650,1717824642148,-500.0,0.00016712,2]
[328813651,1717824642159,-2605.24,0.00016712,2]
[328813652,1717824642169,-708.83,0.00016712,2]
[328813653,1717824642179,-2638.97,0.00016712,2]
[328813654,1717824642189,-500.0,0.00016712,2]
[328813655,1717824642200,-509.55,0.00016712,2]
[328813656,1717824642210,-503.61910148,0.00016712,2]
[328813657,1717824642219,-1456.45,0.00016712,2]
[328813658,1717824642229,-500.0,0.00016712,2]
[328813659,1717824642239,-500.0,0.00016712,2]
[328813660,1717824642250,-500.0,0.00016712,2]
[328813661,1717824642260,-500.0,0.00016712,2]
[328813662,1717824642270,-500.0,0.00016712,2]
[328813663,1717824642280,-500.0,0.00016712,2]
[328813664,1717824642290,-500.0,0.00016712,2]
[328813665,1717824642300,-500.0,0.00016712,2]
[328813666,1717824642310,-500.0,0.00016712,2]
[328813667,1717824642320,-500.0,0.00016712,2]
[328813668,1717824642331,-500.0,0.00016712,2]
[328813669,1717824642341,-511.92276023,0.00016712,2]
[328813670,1717824642352,-915.1,0.00016712,2]
[328813671,1717824642363,-1094.91,0.00016712,2]
[328813672,1717824642374,-515.87605569,0.00016712,2]
[328813673,1717824642384,-2905.83,0.00016712,2]
[328813674,1717824642394,-500.0,0.00016712,2]
[328813675,1717824642404,-504.22814589,0.00016712,2]
[328813676,1717824642414,-624.10034757,0.00016712,2]
[328813677,1717824642424,-503.72527274,0.00016712,2]
[328813678,1717824642433,-696.99,0.00016712,2]
[328813679,1717824642443,-500.0,0.00016712,2]
[328813680,1717824642453,-254.37720679,0.00016712,2]
[328813681,1717824642462,-500.0,0.00016712,2]
[328813682,1717824642472,-500.0,0.00016712,2]
[328813683,1717824642482,-413.9737691,0.00016712,2]
[328813684,1717824642493,-500.0,0.00016712,2]
[328813685,1717824642503,-516.8390342,0.00016712,2]
[328813686,1717824642513,-1245.42,0.00016712,2]
[328813687,1717824642523,-1375.31,0.00016712,2]
[328813688,1717824642533,-513.92471288,0.00016712,2]
[328813689,1717824642542,-2340.38,0.00016712,2]
[328813690,1717824642552,-1126.55,0.00016712,2]
[328813691,1717824642562,-500.0,0.00016712,2]
[328813692,1717824642573,-520.39081849,0.00016712,2]
[328813693,1717824642585,-500.0,0.00016712,2]
[328813694,1717824642595,-500.0,0.00016712,2]
[328813695,1717824642605,-1988.71,0.00016712,2]
[328813696,1717824642617,-500.0,0.00016712,2]
[328813697,1717824642627,-500.0,0.00016712,2]
[328813698,1717824642637,-500.0,0.00016712,2]
[328813699,1717824642648,-500.0,0.00016712,2]
[328813700,1717824642660,-484.3448978,0.00016712,2]
[328813701,1717824642670,-670.55,0.00016712,2]
[328813702,1717824642680,-500.82797781,0.00016712,2]
[328813703,1717824642690,-611.30515403,0.00016712,2]
[328813705,1717824642700,-548.94,0.00016712,2]
[328813707,1717824642711,-500.0,0.00016712,2]
[328813709,1717824642721,-500.0,0.00016712,2]
[328813711,1717824642731,-500.0,0.00016712,2]
[328813713,1717824642741,-500.0,0.00016712,2]
[328813714,1717824642752,-784.98,0.00016712,2]
[328813715,1717824642762,-500.0,0.00016712,2]
[328813716,1717824642772,-500.0,0.00016712,2]
[328813717,1717824642782,-500.0,0.00016712,2]
[328813718,1717824642792,-807.32,0.00016712,2]
[328813719,1717824642802,-1002.01,0.00016712,2]
[328813720,1717824642811,-536.15,0.00016712,2]
[328813721,1717824642821,-500.0,0.00016712,2]
[328813722,1717824642831,-234.69010846,0.00016712,2]
[328813723,1717824642841,-3234.46,0.00016712,2]
[328813724,1717824642852,-1787.65,0.00016712,4]
[328813725,1717824642862,-500.0,0.00016712,2]
[328813726,1717824642872,-542.9321526,0.00016712,2]
[328813727,1717824642881,-1398.45,0.00016712,2]
[328813728,1717824642891,-508.88,0.00016712,2]
[328813730,1717824642901,-500.0,0.00016712,2]
[328813731,1717824642911,-818.54,0.00016712,2]
[328813732,1717824642921,-500.0,0.00016712,2]
[328813733,1717824642931,-604.46,0.00016712,2]
[328813734,1717824642940,-4251.98,0.00016712,2]
[328813735,1717824642951,-1727.96,0.00016712,2]
[328813736,1717824642960,-993.39,0.00016712,2]
[328813737,1717824642971,-500.0,0.00016712,2]
[328813738,1717824642980,-1394.91,0.00016712,2]
[328813739,1717824642990,-500.0,0.00016712,2]
[328813740,1717824643000,-1240.86,0.00016712,2]